Workbook

Sheet ADA CONSTRUCTION MAY 2024 CAA
A1: DEPARTMENT OF TRANSPORTATION - CALTRANS
A2: DBE Commitment at Award (CAA) on Federally Funded Major Construction Contracts - October 1, 2023 - May 31, 2024
A4: Total Award Amount Year-to-Date (YTD) | C4: Total DBE Commitment Amount YTD | F4: Total Prime Contracts Awarded YTD
A5: 1840322674 | C5: =SUM(C7:C18) -> 415454616.4 | F5: =SUM(D254:D274,J254:J274,G254:G274) -> 103
A6: Groups | C6: Commitment Dollars YTD | D6: Firms YTD | E6: Contracts YTD | F6: % of Contracts | G6: % of DBE $ | H6: % of Total $
A7: Hispanic American Male | C7: =SUMIF(D30:D114,"m", C30:C114) -> 135407152.8 | D7: =COUNTIF(D30:D114,"M") -> 66 | E7: =SUMIF(D30:D114,"M",E30:E114) -> 208 | F7: =E7/E20 -> 0.2822252374 | G7: =C7/C5 -> 0.3259252574 | H7: =C7/A5 -> 0.07357794083
A8: Hispanic American Female | C8: =SUMIF(D30:D114,"F", C30:C114) -> 53654956.74 | D8: =COUNTIF(D30:D114,"F") -> 18 | E8: =SUMIF(D30:D114,"F",E30:E114) -> 110 | F8: =E8/E20 -> 0.1492537313 | G8: =C8/C5 -> 0.1291475762 | H8: =C8/A5 -> 0.02915518975
A9: African American Male | C9: =SUMIF(D132:D145,"m", C132:C145) -> 11448408.86 | D9: =COUNTIF(D132:D145,"M") -> 10 | E9: =SUMIF(D132:D145,"M",E132:E145) -> 27 | F9: =E9/E20 -> 0.03663500678 | G9: =C9/C5 -> 0.02755634047 | H9: =C9/A5 -> 0.006220870408
A10: African American Female | C10: =SUMIF(D132:D145,"F", C132:C145) -> 9768178.62 | D10: =COUNTIF(D132:D145,"F") -> 3 | E10: =SUMIF(D132:D145,"F",E132:E145) -> 16 | F10: =E10/E20 -> 0.02170963365 | G10: =C10/C5 -> 0.0235120233 | H10: =C10/A5 -> 0.00530786191
A11: Asian Pacific Male | C11: =SUMIF(D167:D185,"m", C167:C185) -> 15381314.51 | D11: =COUNTIF(D167:D185,"M") -> 11 | E11: =SUMIF(D167:D185,"M",E167:E185) -> 30 | F11: =E11/E20 -> 0.04070556309 | G11: =C11/C5 -> 0.03702285136 | H11: =C11/A5 -> 0.00835794436
A12: Asian Pacific Female | C12: =SUMIF(D167:D185,"F", C167:C185) -> 18191205.11 | D12: =COUNTIF(D167:D185,"F") -> 7 | E12: =SUMIF(D167:D185,"F",E167:E185) -> 33 | F12: =E12/E20 -> 0.0447761194 | G12: =C12/C5 -> 0.04378626303 | H12: =C12/A5 -> 0.00988479106
A13: Subcontinent Asian Male | C13: =SUMIF(D148:D164,"m", C148:C164) -> 36917330.65 | D13: =COUNTIF(D148:D164,"M") -> 14 | E13: =SUMIF(D148:D164,"M",E148:E164) -> 36 | F13: =E13/E20 -> 0.04884667571 | G13: =C13/C5 -> 0.08886008048 | H13: =C13/A5 -> 0.02006024877
A14: Subcontinent Asian Female | C14: =SUMIF(D148:D164,"F", C148:C164) -> 1071090 | D14: =COUNTIF(D148:D164,"F") -> 2 | E14: =SUMIF(D148:D164,"F",E148:E164) -> 6 | F14: =E14/E20 -> 0.008141112619 | G14: =C14/C5 -> 0.002578115534 | H14: =C14/A5 -> 0.0005820120653
A15: Native American Male | C15: =SUMIF(D117:D129,"m", C117:C129) -> 16613797.35 | D15: =COUNTIF(D117:D129,"M") -> 8 | E15: =SUMIF(D117:D129,"M",E117:E129) -> 33 | F15: =E15/E20 -> 0.0447761194 | G15: =C15/C5 -> 0.03998943975 | H15: =C15/A5 -> 0.009027654546
A16: Native American Female | C16: =SUMIF(D117:D129,"F", C117:C129) -> 1885216.8 | D16: =COUNTIF(D117:D129,"F") -> 4 | E16: =SUMIF(D117:D129,"F",E117:E129) -> 4 | F16: =E16/E20 -> 0.005427408412 | G16: =C16/C5 -> 0.004537720188 | H16: =C16/A5 -> 0.001024394704
A17: Non Minority Women | C17: =SUMIF(D192:D249,"F", C192:C249) -> 113765039.1 | D17: =COUNTIF(D192:D249,"F") -> 58 | E17: =SUMIF(D192:D249,"F",E192:E249) -> 233 | F17: =E17/E20 -> 0.31614654 | G17: =C17/C5 -> 0.2738326512 | H17: =C17/A5 -> 0.06181798481
A18: Other Men | C18: =SUMIF(D188:D189,"m", C188:C189) -> 1350925.9 | D18: =COUNTIF(D188:D189,"M") -> 1 | E18: =SUMIF(D188:D189,"M",E188:E189) -> 1 | F18: =E18/E20 -> 0.001356852103 | G18: =C18/C5 -> 0.003251681042 | H18: =C18/A5 -> 0.0007340701277
F19: =E19/E20 -> 0 | G19: =C19/C5 -> 0 | H19: =C19/A5 -> 0
A20: Total | C20: =SUM(C7:C18) -> 415454616.4 | D20: =SUM(D7:D19) -> 202 | E20: =SUM(E7:E19) -> 737
A21: Total Primes Contracts | C21: =SUM(D254:D274,J254:J274,G254:G274) -> 103
A23: Yellow = DBEs | C23: Green = Trucking | D23: =COUNTIF(B30:B249,43) -> 33 | E23: =SUM(SUMIF(B29:B114,"43",C29:C114),SUMIF(B116:B189,"43",C116:C189),SUMIF(B191:B249,"43",C191:C249)) -> 53998214.92 | F23: =E23/C5 -> 0.1299737993
A24: Red = Prime Contractor | C24: Blue = Supplier | D24: =COUNTIF(B30:B249,33) -> 29 | E24: =SUM(SUMIF(B30:B114,"33",C30:C114),SUMIF(B117:B189,"33",C117:C189),SUMIF(B192:B249,"33",C192:C249)) -> 79599711.76 | F24: =E24/C5 -> 0.1915966477
A25: Red Italic = DBE firm as Prime | C25: White = Other | D25: =COUNTIF(B30:B249,-4142) -> 140 | E25: =C5-(E23+E24) -> 281856689.7 | F25: =E25/C5 -> 0.678429553
A26: BOLD = women
A27: * = Used both as Trucking & Supplier
A29: Hispanic American | B29: Column1 | C29: Dollars | D29: M/F | E29: Contract | F29: Contract # | G29: Prime | H29: Prime Name | I29: Districts
A30: 3P LANDSCAPING | B30: -4142 | C30: 3175775 | D30: M | E30: 4 | F30: =FETCHCOMMENT(E30) -> 08-1C5704 12-0N8904 06-0X3804 04-4J4604 | G30: 4 | H30: =FETCHCOMMENT(G30) -> SEMA CONSTRUCTION INC SECURITY PAVING COMPANY, INC. GRIFFITH COMPANY CALIFORNIA HIGHWAY CONSTRUCTION GROUP, INC. | I30: 4,6,8,12
A31: A & M CONSULTING ENGINEERS | B31: -4142 | C31: 44800 | D31: M | E31: 3 | F31: =FETCHCOMMENT(E31) -> 10-1E3004 04-2Q7004 04-1Q4604 | G31: 2 | H31: =FETCHCOMMENT(G31) -> BAY CITIES PAVING & GRADING, INC. O.C. JONES & SONS, INC. | I31: 4,10
A32: A STAR SWEEPING | B32: 43 | C32: 1001080 | D32: M | E32: 6 | F32: =FETCHCOMMENT(E32) -> 01-0J6314 03-4H0704 01-0E11U4 03-1H9904 03-3H6104 01-0H1504 | G32: 6 | H32: =FETCHCOMMENT(G32) -> GRANTIE CONSTRUCTION COMPANY DESILVA GATES CONSTRUCTION LLC A. TEICHERT & SON INC DBA TEICHERT CONSTRUCTION O.C. JONES & SONS INC BAY CITIES PAVING & GRADING INC CAL VALLEY CONSTRUCTION INC | I32: 1,3,4,6
A33: ABSL CONSTRUCTION | B33: -4142 | C33: 7746489.55 | D33: M | E33: 23 | F33: =FETCHCOMMENT(E33) -> 01-0J6314 02-4H0204 03-4H0704 10-0G8304 01-0E11U4 03-1H9904 11-430254 03-1H6304 04-4J5404 05-1H3104 10-1E3004 04-1Q5814 01-0C55U4 03-2J3204 03-3H6104 04-1J9604 06-0X3004 06-1A4604 01-0H1504 04-3W7504 04-3W7604 07-322504 04-2Q7004 01-0H1704 04-0P1204 07-356604 03-3H5604 04-1Q4604 04-2Q7604 | G33: 13 | H33: =FETCHCOMMENT(G33) -> GRANTIE CONSTRUCTION COMPANY TULLIS INC DESILVA GATES CONSTRUCTION LLC VIKING CONSTRUCTION COMPANY A. TEICHERT & SON INC DBA TEICHERT CONSTRUCTION CSI/CJA A JOINT VENTURE O.C. JONES & SONS, INC. GHILOTTI BROS, INC. BAY CITIES PAVING & GRADING, INC. AMERICAN CIVIL CONSTRUCTORS WEST COAST, LLC dba ACC WEST COAST BEADOR CONSTRUCTION COMPANY, INC. MYERS & SONS CONSTRUCTION LLC FLATIRON WEST INC. | I33: 1,2,3,4,7,10,11
A34: AERO-ENVIRONMENTAL CONSULTING | B34: -4142 | C34: 22000 | D34: M | E34: 1 | F34: =FETCHCOMMENT(E34) -> 04-3W7604 | G34: 1 | H34: =FETCHCOMMENT(G34) -> AMERICAN CIVIL CONSTRUCTORS WEST COAST, LLC | I34: 4
A35: ALL STATE TRUCKING | B35: 43 | C35: 51260 | D35: M | E35: 1 | F35: =FETCHCOMMENT(E35) -> 08-1C5704 | G35: 1 | H35: =FETCHCOMMENT(G35) -> SEMA CONSTRUCTION | I35: 8
A36: ALCORN FENCE COMPANY | B36: -4142 | C36: 67989 | D36: M | E36: 1 | F36: =FETCHCOMMENT(E36) -> 07-322904 | G36: 1 | H36: =FETCHCOMMENT(G36) -> C. A. RASMUSSEN, INC. | I36: 7
A37: ALFARO GENERAL ENGINEERING | B37: -4142 | C37: 21070695.44 | D37: M | E37: 2 | F37: =FETCHCOMMENT(E37) -> 07-338604 | G37: 1 | H37: =FETCHCOMMENT(G37) -> ALFARO COMMUNICATIONS CONSTRUCTION, INC. | I37: 7,8
A38: ALTAMONT REBAR CORP | B38: -4142 | C38: 472500 | D38: M | E38: 1 | F38: =FETCHCOMMENT(E38) -> 04-2Q5704 | G38: 1 | H38: =FETCHCOMMENT(G38) -> DISNEY CONSTRUCTION, INC. | I38: 4
A39: ALVAREZ AND SHAW INC | B39: 43 | C39: 2183337 | D39: M | E39: 1 | F39: =FETCHCOMMENT(E39) -> 11-430304 | G39: 1 | H39: =FETCHCOMMENT(G39) -> SB GENERAL ENGINEERING | I39: 11
A40: ANCO IRON & CONSTRUCTION | B40: -4142 | C40: 295699.79 | D40: M | E40: 1 | F40: =FETCHCOMMENT(E40) -> 09-368004 | G40: 1 | H40: =FETCHCOMMENT(G40) -> PAPICH CONSTRUCITON COMPANY INC | I40: 9
A41: ARBISO TRANPORTATION INC | B41: 43 | C41: 1377920 | D41: M | E41: 3 | F41: =FETCHCOMMENT(E41) -> 02-3H6504 02-4H0204 02-4H0504 | G41: 2 | H41: =FETCHCOMMENT(G41) -> J.F. SHEA CONSTRUCTION INC TULLIS INC | I41: 2
A42: ARGUELLO CONCRETE CONSTRUCTION | B42: -4142 | C42: 110160 | D42: M | E42: 1 | F42: =FETCHCOMMENT(E42) -> 06-0X3004 | G42: 1 | H42: =FETCHCOMMENT(G42) -> BAY CITIES PAVING AND GRADING | I42: 6
A43: AUSTIN ENTERPRISE | B43: -4142 | C43: 3998292.75 | D43: F | E43: 19 | F43: =FETCHCOMMENT(E43) -> 10-0G8304 01-0E11U4 03-1H9904 11-430394 05-1H3104 10-1E3004 11-2T3434 03-3H6104 01-0H1504 04-3W7504 04-3W7604 06-0X2604 07-322504 04-2Q7004 04-1Q4604 04-2Q7604 06-0W8204 06-0X0604 08-1K4904 | G43: 11 | H43: =FETCHCOMMENT(G43) -> VIKING CONSTRUCTION COMPANY INC GRANITE CONSTRUCTION COMPANY A. TEICHERT & SON INC DBA TEICHERT CONSTRUCTION GRIFFITH COMPANY BAY CITIES PAVING & GRADING, INC. WALSH CONSTRUCTION COMPANY II, LLC DESILVA GATES CONSTRUCTION LLC AMERICAN CIVIL CONSTRUCTORS WEST COAST, LLC dba ACC WEST COAST BEADOR CONSTRUCTION COMPANY, INC. O.C. JONES & SONS, INC. GHILOTTI BROS, INC. | I43: 1,3,4,5,6,7,8,10,11
A44: BARGAS ENVIRONMENTAL CONSULTING | B44: -4142 | C44: 96990 | D44: F | E44: 2 | F44: =FETCHCOMMENT(E44) -> 03-4H0704 03-1H9904 | G44: 2 | H44: =FETCHCOMMENT(G44) -> DESILVA GATES CONSTRUCTION LLC A. TEICHERT & SON INC DBA TEICHERT CONSTRUCTION | I44: 3
A45: BAY LINE CUTTING AND CORING | B45: -4142 | C45: 30920 | D45: M | E45: 2 | F45: =FETCHCOMMENT(E45) -> 04-0K7804 04-2Q7604 | G45: 1 | H45: =FETCHCOMMENT(G45) -> GHILOTTI BROS INC | I45: 4
A46: BELLAGIO CONSTRUCITON | B46: -4142 | C46: 50547 | D46: M | E46: 1 | F46: =FETCHCOMMENT(E46) -> 06-0X3004 | G46: 1 | H46: =FETCHCOMMENT(G46) -> BAY CITIES PAVING AND GRADING | I46: 6
A47: BERT W. SALAS | B47: -4142 | C47: 715884 | D47: M | E47: 1 | F47: =FETCHCOMMENT(E47) -> 11-2T3434 | G47: 1 | H47: =FETCHCOMMENT(G47) -> WALSH CONSTRUCTION COMPANY II, LLC | I47: 11
A48: BLANCO CONSTRUCTION | B48: -4142 | C48: 158500 | D48: M | E48: 1 | F48: =FETCHCOMMENT(E48) -> 12-0S3104 | G48: 1 | H48: =FETCHCOMMENT(G48) -> AUTOBAHN CONSTRUCTION INC. | I48: 12
A49: BRUCE ANDERSON | B49: -4142 | C49: 927740 | D49: M | E49: 1 | F49: =FETCHCOMMENT(E49) -> 07-320804 | G49: 1 | H49: =FETCHCOMMENT(G49) -> CALPROMAX ENGINEERING, INC. | I49: 7
A50: BT TRUCKING | B50: 43 | C50: 1740496.6 | D50: M | E50: 2 | F50: =FETCHCOMMENT(E50) -> 12-0S1504 03-3H6104 | G50: 2 | H50: =FETCHCOMMENT(G50) -> POWELL CONSTRUCTORS, INC DESILVA GATES CONSTRUCTOIN LLC | I50: 3,12
A51: C & N REINFORCING INC | B51: -4142 | C51: 8851522.64 | D51: M | E51: 5 | F51: =FETCHCOMMENT(E51) -> 04-0K7804 04-4J5404 10-1E3004 03-3H5604 04-1Q4604 | G51: 4 | H51: =FETCHCOMMENT(G51) -> BAY CITIES PAVING & GRADING, INC. GHILOTTI BROS, INC. FLATIRON WEST INC. O.C. JONES & SONS, INC. | I51: 3,4,10
A52: CENTRAL COAST TRAFFIC SAFETY, INC. | B52: -4142 | C52: 852349.7 | D52: M | E52: 2 | F52: =FETCHCOMMENT(E52) -> 05-1H3104 09-368004 | G52: 2 | H52: =FETCHCOMMENT(G52) -> GRANITE CONSTRUCTION COMPANY PAPICH CONSTRUCITON COMPANY INC | I52: 5,9
A53: CHAVEZ TRUCKING | B53: 43 | C53: 2056114.65 | D53: F | E53: 1 | F53: =FETCHCOMMENT(E53) -> 04-1Q5814 | G53: 1 | H53: =FETCHCOMMENT(G53) -> BAY CITIES PAVING & GRADING, INC. | I53: 4
A54: CLAY MIRANDA TRUCKING | B54: -4142 | C54: 409616.88 | D54: M | E54: 1 | F54: =FETCHCOMMENT(E54) -> 06-0X2604 | G54: 1 | H54: =FETCHCOMMENT(G54) -> A. TEICHERT & SON, INC. DBA TEICHERT CONSTRUCTION | I54: 6
A55: COASTLINE SWEEPERS | B55: -4142 | C55: 55890 | D55: F | E55: 1 | F55: =FETCHCOMMENT(E55) -> 05-1H3104 | G55: 1 | H55: =FETCHCOMMENT(G55) -> GRANITE CONSTRUCTION COMPANY | I55: 5
A56: COVARRUBIAS TRAFFIC CONTROL | B56: -4142 | C56: 555200 | D56: F | E56: 2 | F56: =FETCHCOMMENT(E56) -> 07-322504 08-1E1404 | G56: 1 | H56: =FETCHCOMMENT(G56) -> BEADOR CONSTRUCTION COMPANY, INC. | I56: 7,8
A57: D.B. ELECTRIC, INC. | B57: -4142 | C57: 477570 | D57: M | E57: 1 | F57: =FETCHCOMMENT(E57) -> 07-351304 | G57: 1 | H57: =FETCHCOMMENT(G57) -> POWELL CONSTRUCTORS, INC. | I57: 7
A58: DELTA BAY CONSULTANTS LLC | B58: -4142 | C58: 36354 | D58: M | E58: 11 | F58: =FETCHCOMMENT(E58) -> 01-0J6314 10-1H6504 10-0G8304 01-0E11U4 04-4J5404 07-347504 01-0C55U4 03-4H8904 06-0X2604 01-0H1704 03-3H5604 | G58: 9 | H58: =FETCHCOMMENT(G58) -> GRANITE CONSTRUCTION COMPANY MARINA LANDSCAPE INC VIKING CONSTRUCTION COMPANY INC GHILOTTI BROS, INC. GRIFFITH COMPANY ST. FRANCIS ELECTRIC LLC A. TEICHERT & SON, INC. DBA TEICHERT CONSTRUCTION PACIFIC INFRASTRUCTURE CONSTRUCTION, LLC FLATIRON WEST INC. | I58: 1,3,4,6,7,10
A59: DESIGN BUILD ENGINEERING | B59: -4142 | C59: 1426760 | D59: M | E59: 2 | F59: =FETCHCOMMENT(E59) -> 07-322904 08-1H3804 | G59: 2 | H59: =FETCHCOMMENT(G59) -> C. A. RASMUSSEN, INC. ACCU CONSTRUCTION | I59: 7,8
A60: DIRT DYNASTY | B60: -4142 | C60: 4131946.98 | D60: M | E60: 3 | F60: =FETCHCOMMENT(E60) -> 10-1G2504 04-0Q0704 04-3W7604 | G60: 3 | H60: =FETCHCOMMENT(G60) -> DIRT DYNASTY ST. FRANCIS ELECTRIC LLC AMERICAN CIVIL CONSTRUCTORS WEST COAST, LLC | I60: 4,10
A61: DRAGON MATERIAL TRANSPORT | B61: 33 | C61: 11675318.13 | D61: F | E61: 11 | F61: =FETCHCOMMENT(E61) -> 02-3H6804 02-4H0204 02-4H6604 02-4H0504 03-4H6004 04-0K7804 04-4J5404 04-1J9604 04-2Q7004 04-1Q4604 06-0W8204 | G61: 8 | H61: =FETCHCOMMENT(G61) -> J.F. SHEA CONSTRUCTION INC TULLIS INC STIMPEL-WIEBELHAUS ASSOCIATES DESILVA GATES CONSTRUCTION LLC GHILOTTI BROS O.C. JONES & SONS INC BAY CITIES PAVING AND GRADING GRANITE CONSTRUCTION COMPANY | I61: 2,3,4,6
A62: DRS REBAR INC | B62: -4142 | C62: 347699.06 | D62: M | E62: 2 | F62: =FETCHCOMMENT(E62) -> 07-356604 08-1J8604 | G62: 2 | H62: =FETCHCOMMENT(G62) -> MYERS & SONS CONSTRUCTION LLC PETERSON-CHASE GENERAL ENGINEERING CONSTRUCTION, INC. | I62: 7,8
A63: E & L GONZALEZ ENGINEERING | B63: -4142 | C63: 1503549 | D63: M | E63: 1 | F63: =FETCHCOMMENT(E63) -> 07-330304 | G63: 1 | H63: =FETCHCOMMENT(G63) -> FEC FUTURE CONTRACTORS AND ENGINEERS INC | I63: 7
A64: ENDEMIC ENVIRONMENTAL SERVICES | B64: -4142 | C64: 484170 | D64: M | E64: 10 | F64: =FETCHCOMMENT(E64) -> 02-0J6404 08-1J2604 01-0C55U4 02-4H0004 01-0H1504 06-0X2604 07-322504 03-3H5604 06-0X0604 08-1K4904 | G64: 7 | H64: =FETCHCOMMENT(G64) -> BALDWIN CONTRACTING COMPANY, INC. DBA KNIFE RIVER CONSTRUCTION MARTIN MARIETTA SAN DIEGO AGGREGATES LLC DBA ATP GENERAL ENGINEERING CONTRACTORS GRANITE CONSTRUCTION COMPANY ROCKY MOUNTAIN CONSTRUCTION A. TEICHERT & SON, INC. DBA TEICHERT CONSTRUCTION BEADOR CONSTRUCTION COMPANY, INC. FLATIRON WEST INC. | I64: 1,2,6,7,8
A65: FEHOKO CONCRETE INC | B65: -4142 | C65: 626025 | D65: M | E65: 1 | F65: =FETCHCOMMENT(E65) -> 07-356604 | G65: 1 | H65: =FETCHCOMMENT(G65) -> MYERS & SONS CONSTRUCTION, LLC | I65: 7
A66: FLASH TRAFFIC, INC. | B66: -4142 | C66: 125931 | D66: F | E66: 3 | F66: =FETCHCOMMENT(E66) -> 03-1H6304 06-0X2604 06-0X0604 | G66: 2 | H66: =FETCHCOMMENT(G66) -> O.C. JONES & SONS, INC. A. TEICHERT & SON, INC. DBA TEICHERT CONSTRUCTION | I66: 3,6
A67: FRONTLINE TRAFFIC CONTROL | B67: -4142 | C67: 4199285 | D67: M | E67: 8 | F67: =FETCHCOMMENT(E67) -> 07-330304 07-322904 12-0S1504 07-347504 07-348804 07-349504 07-356604 03-3H5604 | G67: 6 | H67: =FETCHCOMMENT(G67) -> FEC FUTURE CONTRACTORS AND ENGINEERS INC C. A. RASMUSSEN, INC. POWELL CONSTRUCTORS INC GRIFFITH COMPANY ALFARO COMMUNICATIONS CONSTRUCTION MYERS & SONS CONSTRUCTION, LLC FLATIRON WEST INC. | I67: 3,7,12
A68: FULL TRAFFIC MAINTENANCE, INC. | B68: -4142 | C68: 3494999.52 | D68: M | E68: 4 | F68: =FETCHCOMMENT(E68) -> 07-338604 08-496124 07-356604 08-1G6704 | G68: 3 | H68: =FETCHCOMMENT(G68) -> ALFARO COMMUNICATIONS CONSTRUCTION, INC. MYERS & SONS CONSTRUCTION, LLC ORTIZ ENTERPRISES, INC. | I68: 7,8
A69: G&F CONCRETE CUTTING, INC. | B69: -4142 | C69: 5089165.61 | D69: F | E69: 10 | F69: =FETCHCOMMENT(E69) -> 07-322904 11-430394 10-1E3004 11-2T3434 03-3H6104 06-0X3004 07-349504 07-322504 07-356604 08-1G6704 | G69: 9 | H69: =FETCHCOMMENT(G69) -> C. A. RASMUSSEN, INC. GRIFFITH COMPANY BAY CITIES PAVING & GRADING, INC. WALSH CONSTRUCTION COMPANY II, LLC DESILVA GATES CONSTRUCTION LLC ALFARO COMMUNICATIONS CONSTRUCITON INC BEADOR CONSTRUCTION COMPANY, INC. MYERS & SONS CONSTRUCTION, LLC ORTIZ ENTERPRISES, INC. | I69: 3,6,7,8,11
A70: G&G ELECTRIC | B70: -4142 | C70: 2205734 | D70: M | E70: 1 | F70: =FETCHCOMMENT(E70) -> 08-1J8604 | G70: 1 | H70: =FETCHCOMMENT(G70) -> PETERSON-CHASE GENERAL ENGINEERING CONSTRUCTION, INC. | I70: 8
A71: GEOSTRUCTURAL | B71: -4142 | C71: 1164996 | D71: M | E71: 3 | F71: =FETCHCOMMENT(E71) -> 12-0N8904 04-4K1404 06-0X0604 | G71: 3 | H71: =FETCHCOMMENT(G71) -> SECURITY PAVING COMPANY, INC. GRANITE ROCK COMPANY A. TEICHERT & SON, INC. DBA TEICHERT CONSTRUCTION | I71: 4,6,12
A72: GOLDEN BAY FENCE PLUS INC | B72: 33 | C72: 50274 | D72: M | E72: 2 | F72: =FETCHCOMMENT(E72) -> 04-0K7804 04-0P1204 | G72: 2 | H72: =FETCHCOMMENT(G72) -> GHILOTTI BROS., INC. O.C. JONES & SONS INC | I72: 4
A73: GOLDEN WEST FUEL | B73: -4142 | C73: 4001246 | D73: F | E73: 1 | F73: =FETCHCOMMENT(E73) -> 11-430254 | G73: 1 | H73: =FETCHCOMMENT(G73) -> BALDWIN CONTRACTING COMPANY, INC. DBA KNIFE RIVER CONSTRUCTION | I73: 11
A74: GRIT & GRAVEL | B74: -4142 | C74: 7209938.94 | D74: F | E74: 2 | F74: =FETCHCOMMENT(E74) -> 07-322904 07-356604 | G74: 2 | H74: =FETCHCOMMENT(G74) -> C. A. RASMUSSEN, INC. MYERS & SONS CONSTRUCTION, LLC | I74: 7
A75: HER-CON CONSTRUCTION SERVICES | B75: -4142 | C75: 2188997.63 | D75: M | E75: 2 | F75: =FETCHCOMMENT(E75) -> 07-355104 07-346204 | G75: 2 | H75: =FETCHCOMMENT(G75) -> ALDRIDGE ELECTRIC, INC. SELECT ELECTRIC INC | I75: 7
A76: HIGH LIGHT ELECTRIC INC | B76: -4142 | C76: 6881407 | D76: M | E76: 6 | F76: =FETCHCOMMENT(E76) -> 06-0U4304 06-0X3304 11-430394 05-1H3104 11-2T3434 07-322504 | G76: 5 | H76: =FETCHCOMMENT(G76) -> GRIFFITH COMPANY SECURITY PAVING COMPANY GRANITE CONSTRUCTION COMPANY WALSH CONSTRUCTION COMPANY II, LLC BEADOR CONSTRUCTION COMPANY, INC. | I76: 5,6,7,12
A77: J PEREZ TRANSPORT | B77: 43 | C77: 359880 | D77: M | E77: 1 | F77: =FETCHCOMMENT(E77) -> 09-368004 | G77: 1 | H77: =FETCHCOMMENT(G77) -> PAPICH CONSTRUCITON COMPANY INC | I77: 9
A78: JEFFERSON STATE HIGHWAY INC | B78: -4142 | C78: 1454727.55 | D78: M | E78: 12 | F78: =FETCHCOMMENT(E78) -> 01-0J6314 02-3H6504 02-3H82U4 02-4H6604 02-0J6404 02-4H0504 03-1H6304 01-0C55U4 02-4H0004 09-368004 03-2J9104 10-1L2604 | G78: 10 | H78: =FETCHCOMMENT(G78) -> GRANITE CONSTRUCTION COMPANY J.F. SHEA CONSTRUCTION INC HAT CREEK CONSTRUCTION & MATERIALS INC STIMPEL-WIEBELHAUS ASSOCIATES INC BALDWIN CONTRACTING COMPANY INC TULLIS INC O.C. JONES & SONS, INC. ROCKY MOUNTAIN CONSTRUCTION PAPICH CONSTRUCTION COMPANY INC | I78: 1,2,3,9,10
A79: KODIAK TRUCKING INC | B79: 43 | C79: 933390 | D79: M | E79: 2 | F79: =FETCHCOMMENT(E79) -> 06-0X3304 06-0W8204 | G79: 2 | H79: =FETCHCOMMENT(G79) -> SECURITY PAVING COMPANY INC GRANITE CONSTRUCTION COMPANY | I79: 6
A80: L&B METAL PRODUCT FABRICATION | B80: -4142 | C80: 131038.05 | D80: M | E80: 1 | F80: =FETCHCOMMENT(E80) -> 02-4H0504 | G80: 1 | H80: =FETCHCOMMENT(G80) -> TULLIS INC | I80: 2
A81: LA FIRMA INC | B81: -4142 | C81: 111300 | D81: M | E81: 5 | F81: =FETCHCOMMENT(E81) -> 01-0J6314 05-1H3104 01-0C55U4 06-0W9704 01-0H1704 | G81: 2 | H81: =FETCHCOMMENT(G81) -> GRANITE CONSTRUCTION BORTOLUSSI & WATKIN INC | I81: 1,5,6
A82: LA STEEL SERVICES, INC. | B82: -4142 | C82: 2459475.05 | D82: M | E82: 3 | F82: =FETCHCOMMENT(E82) -> 12-0N8904 07-322504 08-1G6704 | G82: 3 | H82: =FETCHCOMMENT(G82) -> SECURITY PAVING COMPANY, INC. BEADOR CONSTRUCTION COMPANY, INC. ORTIZ ENTERPRISES, INC. | I82: 7,8,12
A83: LOGISTICAL ENTERPRISES | B83: 33 | C83: 3840457.44 | D83: F | E83: 10 | F83: =FETCHCOMMENT(E83) -> 03-1H9904 07-320804 02-0J6404 03-4H6004 03-1H6304 03-2J3204 03-3H6104 03-3H5604 12-0R6804 12-0S3304 | G83: 7 | H83: =FETCHCOMMENT(G83) -> A. TEICHERT & SON INC DBA TEICHERT CONSTRUCTION CALPROMAX ENGINEERING, INC. DESILVA GATES CONSTRUCTION CSI/CJA A JOINT VENTURE O.C. JONES & SONS, INC. FLATIRON WEST INC. CHUMO CONSTRUCTION INC. | I83: 2,3,7
A84: LONE STAR LANDSCAPE | B84: -4142 | C84: 955588 | D84: M | E84: 7 | F84: =FETCHCOMMENT(E84) -> 03-1H6304 04-2Q5704 04-3Q7604 04-0Q0704 04-4K1404 04-0Q1804 04-0K1104 | G84: 7 | H84: =FETCHCOMMENT(G84) -> O.C. JONES & SONS, INC. DISNEY CONSTRUCTION, INC. GHILOTTI BROS INC ST. FRANCIS ELECTRIC LLC GRANITE ROCK COMPANY ANVIL BUILDERS INC FBD VANGUARD CONSTRUCTION INC | I84: 3,4
A85: M & S ENVIRONMENTAL LANDSCAPES | B85: 33 | C85: 1586339.5 | D85: M | E85: 8 | F85: =FETCHCOMMENT(E85) -> 01-0H6104 02-3H6504 02-3H82U4 02-4H0204 02-4H6604 01-0E11U4 02-0J6404 02-4H0504 | G85: 7 | H85: =FETCHCOMMENT(G85) -> MERCER FRASER COMPANY J.F. SHEA CONSTRUCTION INC HAT CREEK CONSTRUCTION AND MATERIALS INC TULLIS INC SATIMPEL-WIEBELHAUS ASSOCIATES INC GRANITE CONSTRUCTION COMPANY BALDWIN CONTRACTING DBA KNIFE RIVER | I85: 1,2
A86: MANERI TRAFFIC CONTROL | B86: -4142 | C86: 9641864.62 | D86: F | E86: 14 | F86: =FETCHCOMMENT(E86) -> 11-430394 12-0N8904 07-321604 08-1H3804 11-430254 07-351304 08-1H9914 08-1J2604 07-322504 07-355104 07-356604 08-1G6704 12-0R6804 12-0S3304 | G86: 13 | H86: =FETCHCOMMENT(G86) -> GRIFFITH COMPANY SECURITY PAVING COMPANY, INC. RJ NOBLE COMPANY ACCU CONSTRUCTION INC CSI/CJA A JOINT VENTURE POWELL CONSTRUCTORS, INC. PETERSON-CHASE GENERAL ENGINEERING CONSTRUCTION INC. MARTIN MARIETTA SAN DIEGO AGGREGATES LLC DBA ATP GENERAL ENGINEERING CONTRACTORS BEADOR CONSTRUCTION COMPANY, INC. ALDRIDGE ELECTRIC, INC. MYERS & SONS CONSTRUCTION, LLC ORTIZ ENTERPRISES, INC. CHUMO CONSTRUCTION INC. | I86: 7,8,11,12
A87: MAVERICK SWEEPING | B87: 43 | C87: 368480 | D87: F | E87: 1 | F87: =FETCHCOMMENT(E87) -> 07-356604 | G87: 1 | H87: =FETCHCOMMENT(G87) -> MYERS & SONS CONSTRUCTION, LLC | I87: 7
A88: MESA TRAFFIC SERVICES | B88: -4142 | C88: 238875 | D88: M | E88: 1 | F88: =FETCHCOMMENT(E88) -> 06-0X3004 | G88: 1 | H88: =FETCHCOMMENT(G88) -> BAY CITIES PAVING AND GRADING | I88: 6
A89: MJD ENGINEERING | B89: -4142 | C89: 8469616 | D89: M | E89: 2 | F89: =FETCHCOMMENT(E89) -> 03-4H6004 03-3H6104 | G89: 2 | H89: =FETCHCOMMENT(G89) -> TULLIS INC DESILVA GATES CONSTRUCITON LLC | I89: 2,3
A90: MONZON & SON ENTERPRISES, INC. | B90: 43 | C90: 9050592 | D90: M | E90: 6 | F90: =FETCHCOMMENT(E90) -> 12-0N8904 07-322504 07-356604 08-1K4904 12-0R6804 12-0S3304 | G90: 5 | H90: =FETCHCOMMENT(G90) -> SECURITY PAVING COMPANY, INC. BEADOR CONSTRUCTION COMPANY, INC. MYERS & SONS CONSTRUCTION, LLC GRANITE CONSTRUCTION COMPANY CHUMO CONSTRUCTION INC. | I90: 7,8,12
A91: MORALES CONTRACTING | B91: -4142 | C91: 69092.5 | D91: M | E91: 1 | F91: =FETCHCOMMENT(E91) -> 11-430254 | G91: 1 | H91: =FETCHCOMMENT(G91) -> CSI/CJA A JOINT VENTURE | I91: 11
A92: POLO ENGINEERING INC | B92: -4142 | C92: 2058303.6 | D92: F | E92: 1 | F92: =FETCHCOMMENT(E92) -> 07-357004 | G92: 1 | H92: =FETCHCOMMENT(G92) -> POLO ENGINEERING INC | I92: 7
A93: PRE-CON PRODUCTS LTD | B93: -4142 | C93: 698314.93 | D93: M | E93: 3 | F93: =FETCHCOMMENT(E93) -> 06-0U4304 05-1H3104 06-0X3004 | G93: 2 | H93: =FETCHCOMMENT(G93) -> GRIFFITH COMPANY GRANITE CONSTRUCTION COMPANY | I93: 5, 6
A94: QA CONSTRUCTORS | B94: -4142 | C94: 354020 | D94: M | E94: 1 | F94: =FETCHCOMMENT(E94) -> 10-0G8304 | G94: 1 | H94: =FETCHCOMMENT(G94) -> VIKING CONSTRUCTION COMPANY INC | I94: 10
A95: QUALITY TRAFFIC CONTROL | B95: -4142 | C95: 1368247.4 | D95: M | E95: 2 | F95: =FETCHCOMMENT(E95) -> 08-1C5704 08-1G6404 | G95: 2 | H95: =FETCHCOMMENT(G95) -> SEMA CONSTRUCTION INC SULLY-MILLER CONTRACTING COMPANY | I95: 8
A96: RANGEL BROTHERS TRUCKING | B96: 43 | C96: 1680735 | D96: M | E96: 1 | F96: =FETCHCOMMENT(E96) -> 06-0X3304 | G96: 1 | H96: =FETCHCOMMENT(G96) -> SECURITY PAVING COMPANY | I96: 6
A97: REYCON CONSTRUCTION, INC. | B97: -4142 | C97: 2355700 | D97: M | E97: 1 | F97: =FETCHCOMMENT(E97) -> 11-2T3434 | G97: 1 | H97: =FETCHCOMMENT(G97) -> WALSH CONSTRUCTION COMPANY II, LLC | I97: 11
A98: ROBINSON SWEEPING INC | B98: 43 | C98: 701050 | D98: F | E98: 5 | F98: =FETCHCOMMENT(E98) -> 01-0H6104 04-3Q7604 06-0X2604 01-0H1704 06-0X0604 | G98: 4 | H98: =FETCHCOMMENT(G98) -> MERCER FRASER COMPANY GHILOTTI BROS A. TEICHERT & SON, INC. DBA TEICHERT CONSTRUCTION GRANITE CONSTRUCTION COMPANY | I98: 1,4,6
A99: RUPERT CONSTRUCTION SUPPLY | B99: 33 | C99: 4165192.72 | D99: M | E99: 4 | F99: =FETCHCOMMENT(E99) -> 03-3H6104 07-356604 03-3H5604 08-1G6704 | G99: 4 | H99: =FETCHCOMMENT(G99) -> DESILVA GATES CONSTRUCTION LLC MYERS & SONS CONSTRUCTION, LLC FLATIRON WEST INC. ORTIZ ENTERPRISES, INC. | I99: 3,7
A100: S & S TRUCKING | B100: 43 | C100: 82989.55 | D100: M | E100: 4 | F100: =FETCHCOMMENT(E100) -> 04-0K7804 04-4J5404 04-4K1404 04-1Q4604 | G100: 3 | H100: =FETCHCOMMENT(G100) -> GHILOTTI BROS., INC. GRANITE ROCK COMPANY O.C. JONES & SONS, INC. | I100: 4
A101: SAFEWAY SIGN COMPANY | B101: -4142 | C101: 62742.2 | D101: M | E101: 1 | F101: =FETCHCOMMENT(E101) -> 03-3H5604 | G101: 1 | H101: =FETCHCOMMENT(G101) -> FLATIRON WEST INC. | I101: 3
A102: SANDOVAL SWEEPING | B102: 43 | C102: 700000 | D102: M | E102: 1 | F102: =FETCHCOMMENT(E102) -> 07-321604 | G102: 1 | H102: =FETCHCOMMENT(G102) -> R.J. NOBLE COMPANY | I102: 7
A103: SANTAMARIA CONCRETE | B103: -4142 | C103: 939991.94 | D103: M | E103: 2 | F103: =FETCHCOMMENT(E103) -> 04-3W7504 04-0Q4404 | G103: 2 | H103: =FETCHCOMMENT(G103) -> AMERICAN CIVIL CONSTRUCTORS WEST COAST, LLC dba ACC WEST COAST HOSELEY CORPORATION | I103: 4
A104: SIERRA TREE COMPANY | B104: -4142 | C104: 42000 | D104: M | E104: 1 | F104: =FETCHCOMMENT(E104) -> 04-4G21A4 | G104: 1 | H104: =FETCHCOMMENT(G104) -> JOHN SEMSEN LANDSCAPING CO., INC. | I104: 4
A105: SWPPQUEEN | B105: -4142 | C105: 314775 | D105: F | E105: 7 | F105: =FETCHCOMMENT(E105) -> 03-4H0704 07-322904 03-4H6004 07-347504 11-2T3434 03-3H6104 08-1G6704 | G105: 5 | H105: =FETCHCOMMENT(G105) -> DESILVA GATES CONSTRUCTION C. A. RASMUSSEN, INC. GRIFFITH COMPANY WALSH CONSTRUCTION COMPANY II, LLC ORTIZ ENTERPRISES, INC. | I105: 3,7,8,11
A106: T.D.W. CONSTRUCTION INC | B106: -4142 | C106: 1342633 | D106: M | E106: 2 | F106: =FETCHCOMMENT(E106) -> 03-4H0704 04-1Q4604 | G106: 2 | H106: =FETCHCOMMENT(G106) -> DESILVA GATES CONSTRUCTION O.C. JONES & SONS, INC. | I106: 3,4
A107: TAYLOR JANE CONSTRUCTION LP | B107: -4142 | C107: 1213619 | D107: F | E107: 2 | F107: =FETCHCOMMENT(E107) -> 06-0X2604 06-0X0604 | G107: 1 | H107: =FETCHCOMMENT(G107) -> A. TEICHERT & SON, INC. DBA TEICHERT CONSTRUCTION | I107: 6
A108: TESORO CONTRACTORS | B108: -4142 | C108: 456530 | D108: M | E108: 1 | F108: =FETCHCOMMENT(E108) -> 07-356604 | G108: 1 | H108: =FETCHCOMMENT(G108) -> MYERS & SONS CONSTRUCTION, LLC | I108: 7
A109: TOTAL SITE SUPPLY COMPANY | B109: -4142 | C109: 44108.6 | D109: M | E109: 1 | F109: =FETCHCOMMENT(E109) -> 06-0X2604 | G109: 1 | H109: =FETCHCOMMENT(G109) -> A. TEICHERT & SON, INC. DBA TEICHERT CONSTRUCTION | I109: 6
A110: TR DIGITAL, INC. | B110: -4142 | C110: 848000 | D110: M | E110: 1 | F110: =FETCHCOMMENT(E110) -> 03-4H8904 | G110: 1 | H110: =FETCHCOMMENT(G110) -> ST. FRANCIS ELECTRIC LLC | I110: 3
A111: TULLY INC | B111: -4142 | C111: 652320 | D111: F | E111: 18 | F111: =FETCHCOMMENT(E111) -> 10-1H6504 10-0G8304 03-1H9904 07-320804 03-1H6304 10-1E3004 04-1Q5814 03-2J3204 04-1J9604 04-3Q7604 06-0X3004 03-4H8904 04-0Q0704 04-2Q7004 04-0P1204 10-1L2604 04-0K1104 04-1Q4604 | G111: 10 | H111: =FETCHCOMMENT(G111) -> MARINA LANDSCAPE INC VIKING CONSTRUCTION COMPANY INC A. TEICHERT & SON INC DBA TEICHERT CONSTRUCTION CALPROMAX ENGINEERING, INC. O.C. JONES & SONS, INC. BAY CITIES PAVING & GRADING, INC. GHILOTTI BROS INC ST. FRANCIS ELECTRIC LLC PACIFIC INFRASTRUCTURE CONSTRUCTION, LLC FBD VANGUARD CONSTRUCTION, INC | I111: 3,4,6,10
A112: VALDIVIA TRUCKING | B112: 43 | C112: 5646456 | D112: M | E112: 6 | F112: =FETCHCOMMENT(E112) -> 01-0J6314 01-0E11U4 01-0C55U4 04-1J9604 03-4H8904 01-0H1704 | G112: 3 | H112: =FETCHCOMMENT(G112) -> GRANITE CONSTRUCTION COMPANY O.C. JONES & SONS INC ST. FRANCIS ELECTRIC LLC | I112: 1,4
A113: WESTERN TRAFFIC SUPPLY, INC. | B113: -4142 | C113: 8222528 | D113: M | E113: 6 | F113: =FETCHCOMMENT(E113) -> 04-1Q5814 10-1E3004 04-3W7504 04-3W7604 04-2Q7004 07-356604 | G113: 3 | H113: =FETCHCOMMENT(G113) -> BAY CITIES PAVING & GRADING, INC. AMERICAN CIVIL CONSTRUCTORS WEST COAST, LLC MYERS & SONS CONSTRUCTION, LLC | I113: 4,7,10
F114: =FETCHCOMMENT(E114) ->  | H114: =FETCHCOMMENT(G114) -> 
A116: Native American | B116: Column1 | C116: Dollars | D116: M/F | E116: Contract | F116: Contract # | G116: Prime | H116: Prime Name | I116: Districts
A117: CREST EQUIPMENT | B117: -4142 | C117: 757512 | D117: F | E117: 1 | F117: =FETCHCOMMENT(E117) -> 11-430254 | G117: 1 | H117: =FETCHCOMMENT(G117) -> CSI/CJA A JOINT VENTURE | I117: 11
A118: DISABLED AMERICAN VETERAN | B118: 33 | C118: 197013.78 | D118: M | E118: 1 | F118: =FETCHCOMMENT(E118) -> 06-1A4604 | G118: 1 | H118: =FETCHCOMMENT(G118) -> CAL VALLEY CONSTRUCTION INC | I118: 6
A119: FORCE TRAFFIC CONTROL | B119: -4142 | C119: 479000 | D119: M | E119: 1 | F119: =FETCHCOMMENT(E119) -> 06-0X3804 | G119: 1 | H119: =FETCHCOMMENT(G119) -> GRIFFITH COMPANY | I119: 6
A120: GLOBAL TRANSLOADING | B120: -4142 | C120: 49230 | D120: F | E120: 1 | F120: =FETCHCOMMENT(E120) -> 07-351304 | G120: 1 | H120: =FETCHCOMMENT(G120) -> POWELL CONSTRUCTORS, INC. | I120: 7
A121: G R SUNDBERG, INC. | B121: -4142 | C121: 771060 | D121: M | E121: 1 | F121: =FETCHCOMMENT(E121) -> 01-0K6404 | G121: 1 | H121: =FETCHCOMMENT(G121) -> G R SUNDBERG, INC. | I121: 1
A122: KRC SAFETY CO INC | B122: 33 | C122: 3288518.23 | D122: M | E122: 16 | F122: =FETCHCOMMENT(E122) -> 10-0G8304 10-1L6304 02-0J6404 04-1J9604 06-0W9704 06-1A4604 09-368004 04-0Q0704 06-0X2604 03-2J9104 04-2Q7004 10-1L2604 04-0K1104 06-0W8204 06-1E2204 09-387604 | G122: 16 | H122: =FETCHCOMMENT(G122) -> VIKING CONSTRUCTION COMPANY CORAL CONSTRUCTION COMPANY BALDWIN CONTRACTING COMPANY INC DBA KNIFE RIVER O.C. JONES & SONS INC BORTOLUSSI & WATKIN INC CAL VALLEY CONSTRUCTION INC PAPICH CONSTRUCITON COMPANY ST. FRANCIS ELECTRIC LLC A. TEICHERT & SON, INC. DBA TEICHERT CONSTRUCTION Q&D CONSTRUCTION LLC BAY CITIES PAVING & GRADING, INC. PACIFIC INFRASTRUCTURE CONSTRUCTION, LLC FBD VANGUARD CONSTRUCTION, INC GRANITE CONSTRUCTION COMPANY CORAL CONSTRUCTION COMPANY DANNY C. HUBBS CONSTRUCTION, INC. DBA D.C. HUBBS CONSTRUCTION | I122: 2,3,4,6,9,10
A123: MCCULLOUGH CONSTRUCTION INC | B123: -4142 | C123: 8619677.84 | D123: M | E123: 1 | F123: =FETCHCOMMENT(E123) -> 01-434844 | G123: 1 | H123: =FETCHCOMMENT(G123) -> MCCULLOUGH CONSTRUCTION INC | I123: 1
A124: S.T. RHOADES CONSTRUCTION | B124: -4142 | C124: 1320062 | D124: M | E124: 3 | F124: =FETCHCOMMENT(E124) -> 01-0H6104 02-0J6404 02-4H0504 | G124: 3 | H124: =FETCHCOMMENT(G124) -> MERCER FRASER BALDWIN CONTRACTING DBA KNIFE RIVER TULLIS INC | I124: 1,2
A125: SAM'S EQUIPMENT & SUPPLIES | B125: 33 | C125: 1614515.5 | D125: M | E125: 7 | F125: =FETCHCOMMENT(E125) -> 10-1H6504 03-1H9904 12-0S1504 06-0W9704 09-368004 04-0P1204 03-3H5604 | G125: 7 | H125: =FETCHCOMMENT(G125) -> MARINA LANDSCAPE INC A. TEICHERT & SON INC DBA TEICHERT CONSTRUCTION POWELL CONSTRUCTORS INC BORTOLUSSI & WATKIN INC PAPICH CONSTRUCTION COMPANY O.C. JONES & SONS INC FLATIRON WEST INC. | I125: 3,4,6,9,10,12
A126: SPIRIT ROAD OILS | B126: -4142 | C126: 151710 | D126: F | E126: 1 | F126: =FETCHCOMMENT(E126) -> 01-0H1504 | G126: 1 | H126: =FETCHCOMMENT(G126) -> GRANITE CONSTRUCTION COMPANY | I126: 1
A127: TOTAL TRAFFIC CONTROL | B127: 33 | C127: 323950 | D127: M | E127: 3 | F127: =FETCHCOMMENT(E127) -> 10-1H6504 04-0Q1804 04-0Q4404 | G127: 3 | H127: =FETCHCOMMENT(G127) -> MARINA LANDSCAPE INC ANIVL BUILDERS INC HOSELEY CORPORATION | I127: 4,10
A128: WEST COAST DRILLING | B128: -4142 | C128: 926764.8 | D128: F | E128: 1 | F128: =FETCHCOMMENT(E128) -> 01-0J6314 | G128: 1 | H128: =FETCHCOMMENT(G128) -> GRANITE CONSTRUCTION COMPANY | I128: 1
F129: =FETCHCOMMENT(E129) ->  | H129: =FETCHCOMMENT(G129) -> 
A131: African American | B131: Column1 | C131: Dollars | D131: M/F | E131: Contract | F131: Contract # | G131: Prime | H131: Prime Name | I131: Districts
A132: ALLUVION BIOLOGICAL CONSULTING | B132: -4142 | C132: 536010 | D132: M | E132: 1 | F132: =FETCHCOMMENT(E132) -> 01-0E11U4 | G132: 1 | H132: =FETCHCOMMENT(G132) -> GRANITE CONSTRUCTION COMPANY | I132: 1
A133: APPIAN UDBE SWPPPS | B133: -4142 | C133: 850 | D133: F | E133: 1 | F133: =FETCHCOMMENT(E133) -> 02-4H0004 | G133: 1 | H133: =FETCHCOMMENT(G133) -> ROCKY MOUNTAIN CONSTRUCTION | I133: 2
A134: BLACK DIAMOND ASPHALT INC | B134: 33 | C134: 9648610.37 | D134: F | E134: 12 | F134: =FETCHCOMMENT(E134) -> 01-0H6104 02-3H6504 03-4H0704 03-1H9904 02-0J6404 03-1H6304 10-1E3004 01-0C55U4 03-2J3204 06-0X3004 04-0P1204 03-3H5604 | G134: 9 | H134: =FETCHCOMMENT(G134) -> MERCER FRASER COMPANY J.F. SHEA CONSTRUCTION INC DESILVA GATES CONSTRUCTION LLC A. TEICHERT & SON INC DBA TEICHERT CONSTRUCTION BALDWIN CONTRACTING COMPANY INC DBA KNIFE RIVER O.C. JONES & SONS, INC. BAY CITIES PAVING & GRADING, INC. GRANITE CONSTRUCTION COMPANY FLATIRON WEST INC. | I134: 1,2,3,4,6,10
A135: CGO CONSTRUCTION COMPANY | B135: -4142 | C135: 182900 | D135: M | E135: 3 | F135: =FETCHCOMMENT(E135) -> 11-430394 12-0N8904 07-356604 | G135: 3 | H135: =FETCHCOMMENT(G135) -> GRIFFITH COMPANY SECURITY PAVING COMPANY, INC. MYERS & SONS CONSTRUCTION, LLC | I135: 7,11,12
A136: DEPENDABLE PETROLEUM PRODUCTS | B136: 33 | C136: 7546334 | D136: M | E136: 8 | F136: =FETCHCOMMENT(E136) -> 08-1G6404 11-430254 08-1J2604 03-3H6104 01-0H1504 01-0H1704 08-1G6704 08-1K4904 | G136: 6 | H136: =FETCHCOMMENT(G136) -> SULLY-MILLER CONTRACTING COMPANY CSI/CJA A JOINT VENTURE MARTIN MARIETTA SAN DIEGO AGGREGATES LLC DBA ATP GENERAL ENGINEERING CONTRACTORS DESILVA GATES CONSTRUCTION LLC GRANITE CONSTRUCTION COMPANY ORTIZ ENTERPRISES, INC. | I136: 1,3,8,11
A137: DOUBLE G'S SUPPLY, INC. | B137: 33 | C137: 118718.25 | D137: F | E137: 3 | F137: =FETCHCOMMENT(E137) -> 03-1H6304 10-1E3004 03-4H8904 | G137: 3 | H137: =FETCHCOMMENT(G137) -> O.C. JONES & SONS, INC. BAY CITIES PAVING & GRADING, INC. ST. FRANCIS ELECTRIC LLC | I137: 3,10
A138: DYNAMIC GENERATOR SERVICE INC. | B138: -4142 | C138: 246250 | D138: M | E138: 1 | F138: =FETCHCOMMENT(E138) -> 06-0W8204 | G138: 1 | H138: =FETCHCOMMENT(G138) -> GRANITE CONSTRUCTION COMPANY | I138: 6
A139: K & G CONCRETE PUMPING | B139: -4142 | C139: 344828 | D139: M | E139: 2 | F139: =FETCHCOMMENT(E139) -> 01-0E11U4 03-3H5604 | G139: 2 | H139: =FETCHCOMMENT(G139) -> GRANITE CONSTRUCTION COMPANY FLATIRON WEST INC. | I139: 1,3
A140: SYNERGY TRAFFIC CONTROL | B140: -4142 | C140: 1576388.86 | D140: M | E140: 4 | F140: =FETCHCOMMENT(E140) -> 06-0X3304 11-2T3434 07-356604 08-1G6704 | G140: 4 | H140: =FETCHCOMMENT(G140) -> SECURITY PAVING COMPANY WALSH CONSTRUCTION COMPANY II, LLC MYERS & SONS CONSTRUCTION, LLC ORTIZ ENTERPRISES, INC. | I140: 6,7,8,11
A141: TAYLOR WATER SERVICES | B141: -4142 | C141: 30000 | D141: M | E141: 1 | F141: =FETCHCOMMENT(E141) -> 01-0J6314 | G141: 1 | H141: =FETCHCOMMENT(G141) -> GRANTIE CONSTRUCTION COMPANY | I141: 1
A142: THE QUALITY FIRM, ACS, AC | B142: -4142 | C142: 147610 | D142: M | E142: 2 | F142: =FETCHCOMMENT(E142) -> 11-430394 07-322504 | G142: 2 | H142: =FETCHCOMMENT(G142) -> GRIFFITH COMPANY BEADOR CONSTRUCTION COMPANY, INC. | I142: 7,11
A143: THOMPSON CONTRACTING | B143: -4142 | C143: 720448 | D143: M | E143: 4 | F143: =FETCHCOMMENT(E143) -> 03-1H6304 04-4J5404 03-2J3204 03-3H5604 | G143: 3 | H143: =FETCHCOMMENT(G143) -> O.C. JONES & SONS, INC. GHILOTTI BROS, INC. FLATIRON WEST INC. | I143: 3,4
A144: TK TRANSPORTATION | B144: -4142 | C144: 117640 | D144: M | E144: 1 | F144: =FETCHCOMMENT(E144) -> 02-4H6604 | G144: 1 | H144: =FETCHCOMMENT(G144) -> STIMPEL-WIEBELHAUS ASSOCIATES INC | I144: 2
F145: =FETCHCOMMENT(E145) ->  | H145: =FETCHCOMMENT(G145) -> 
A147: Sub Cont Asian | B147: Column1 | C147: Dollars | D147: M/F | E147: Contract | F147: Contract # | G147: Prime | H147: Prime Name | I147: Districts
A148: A1 TRUCKING SVS, INC. | B148: 43 | C148: 13308109.12 | D148: M | E148: 9 | F148: =FETCHCOMMENT(E148) -> 04-2G7804 10-1E3004 04-1Q5814 06-0X3004 04-0Q0704 04-3W7504 04-3W7604 04-2Q7004 04-1Q4604 | G148: 5 | H148: =FETCHCOMMENT(G148) -> FBD VANGUARD CONSTRUCTION, INC. BAY CITIES PAVING & GRADING, INC. ST. FRANCIS ELECTRIC LLC AMERICAN CIVIL CONSTRUCTORS WEST COAST, LLC dba ACC WEST COAST O.C. JONES & SONS, INC. | I148: 4,6,10
A149: ACCURATE EARTHWORKS INC | B149: -4142 | C149: 419875.2 | D149: M | E149: 1 | F149: =FETCHCOMMENT(E149) -> 04-0K1304 | G149: 1 | H149: =FETCHCOMMENT(G149) -> DESILVA GATES CONSTRUCTION LLC | I149: 4
A150: ALL CITIES TRUCKING | B150: 43 | C150: 91600 | D150: M | E150: 1 | F150: =FETCHCOMMENT(E150) -> 04-1Q4604 | G150: 1 | H150: =FETCHCOMMENT(G150) -> O.C. JONES & SONS, INC. | I150: 4
A151: AMERICA PACIFIC CONSTRUCTION | B151: 43 | C151: 629600 | D151: M | E151: 1 | F151: =FETCHCOMMENT(E151) -> 08-1H9924 | G151: 1 | H151: =FETCHCOMMENT(G151) -> GBA ENGINEERING, INC. | I151: 8
A152: BANWAIT TRUCKING | B152: 43 | C152: 64000 | D152: M | E152: 1 | F152: =FETCHCOMMENT(E152) -> 10-1L2604 | G152: 1 | H152: =FETCHCOMMENT(G152) -> PACIFIC INFRASTRUCTURE CONSTRUCTION, LLC | I152: 10
A153: CHANNA TRUCKING INC | B153: 43 | C153: 141300 | D153: F | E153: 1 | F153: =FETCHCOMMENT(E153) -> 04-0K7804 | G153: 1 | H153: =FETCHCOMMENT(G153) -> GHILOTTI BROS INC | I153: 4
A154: DESTINATION ANYWHERE, INC. | B154: -4142 | C154: 1048545 | D154: M | E154: 1 | F154: =FETCHCOMMENT(E154) -> 03-1H6304 | G154: 1 | H154: =FETCHCOMMENT(G154) -> O.C. JONES & SONS, INC. | I154: 3
A155: HEIR & SON CONSTRUCTION, INC. | B155: -4142 | C155: 787764.2 | D155: M | E155: 2 | F155: =FETCHCOMMENT(E155) -> 04-3W7604 07-356604 | G155: 2 | H155: =FETCHCOMMENT(G155) -> AMERICAN CIVIL CONSTRUCTORS WEST COAST, LLC MYERS & SONS CONSTRUCTION, LLC | I155: 4,7
A156: JASS BOYS TRUCK LINES | B156: -4142 | C156: 5204820 | D156: M | E156: 3 | F156: =FETCHCOMMENT(E156) -> 04-4J5404 10-1E3004 04-2Q7004 | G156: 2 | H156: =FETCHCOMMENT(G156) -> GHILOTTI BROS, INC. BAY CITIES PAVING & GRADING, INC. | I156: 4,10
A157: S & S TRUCKING | B157: 43 | C157: 25800 | D157: M | E157: 1 | F157: =FETCHCOMMENT(E157) -> 04-3Q7604 | G157: 1 | H157: =FETCHCOMMENT(G157) -> GHILOTTI BROS INC | I157: 4
A158: SEQUOIA CONSULTANT INC | B158: 33 | C158: 1765156 | D158: M | E158: 12 | F158: =FETCHCOMMENT(E158) -> 03-4H0704 07-322904 03-4H6004 11-430254 12-0S1504 05-1H3104 08-1J2604 11-2T3434 03-3H6104 07-356604 03-3H5604 08-1K4904 | G158: 10 | H158: =FETCHCOMMENT(G158) -> ST. FRANCIS ELECTRIC LLC C. A. RASMUSSEN, INC. DESILVA GATES CONSTRUCTION CSI/CJA A JOINT VENTURE POWELL CONSTRUCTORS INC GRANITE CONSTRUCTION COMPANY MARTIN MARIETTA SAN DIEGO AGGREGATES LLC DBA ATP GENERAL ENGINEERING CONTRACTORS WALSH CONSTRUCTION COMPANY II, LLC MYERS & SONS CONSTRUCTION, LLC FLATIRON WEST INC. | I158: 3,5,7,8,11,12
A159: SHK HAULING, INC | B159: 43 | C159: 274500 | D159: M | E159: 1 | F159: =FETCHCOMMENT(E159) -> 03-3H5604 | G159: 1 | H159: =FETCHCOMMENT(G159) -> FLATIRON WEST INC. | I159: 3
A160: SIERRA GEOTECH DBE, INC. | B160: -4142 | C160: 929790 | D160: F | E160: 5 | F160: =FETCHCOMMENT(E160) -> 03-1H9904 03-3H6104 04-3Q7604 01-0H1504 06-0X2604 | G160: 4 | H160: =FETCHCOMMENT(G160) -> A. TEICHERT & SON INC DBA TEICHERT CONSTRUCTION DESILVA GATES CONSTRUCTION LLC GHILOTTI BROS INC GRANITE CONSTRUCTION COMPANY | I160: 1,3,4,6
A161: SONNY'S TRUCKING | B161: 43 | C161: 160500 | D161: M | E161: 1 | F161: =FETCHCOMMENT(E161) -> 10-1E3004 | G161: 1 | H161: =FETCHCOMMENT(G161) -> BAY CITIES PAVING & GRADING, INC. | I161: 10
A162: THE DESIGN BUILD, INC. | B162: -4142 | C162: 898753.3 | D162: M | E162: 1 | F162: =FETCHCOMMENT(E162) -> 03-3H5604 | G162: 1 | H162: =FETCHCOMMENT(G162) -> FLATIRON WEST INC. | I162: 3
A163: TSI ENGINEERING, INC. | B163: -4142 | C163: 12238307.83 | D163: M | E163: 1 | F163: =FETCHCOMMENT(E163) -> 10-1C2704 | G163: 1 | H163: =FETCHCOMMENT(G163) -> TSI ENGINEERING, INC. | I163: 10
F164: =FETCHCOMMENT(E164) ->  | H164: =FETCHCOMMENT(G164) -> 
A166: Asian Pacific | B166: Column1 | C166: Dollars | D166: M/F | E166: Contract | F166: Contract # | G166: Prime | H166: Prime Name | I166: Districts
A167: ACE FENCE COMPANY | B167: -4142 | C167: 9471336.45 | D167: F | E167: 16 | F167: =FETCHCOMMENT(E167) -> 06-0X3304 07-320804 11-430394 11-430254 12-0S1504 05-1H3104 07-351304 08-1J2604 11-2T3434 06-0W9704 06-0X3804 07-322504 07-346204 08-1E1404 08-1G6704 08-1K4904 | G167: 12 | H167: =FETCHCOMMENT(G167) -> SECURITY PAVING COMPANY CALPROMAX ENGINEERING, INC. GRIFFITH COMPANY POWELL CONSTRUCTORS INC CSI/CJA A JOINT VENTURE GRANITE CONSTRUCTION COMPANY MARTIN MARIETTA SAN DIEGO AGGREGATES LLC DBA ATP GENERAL ENGINEERING CONTRACTORS WALSH CONSTRUCTION COMPANY II, LLC BORTOLUSSI & WATKIN INC BEADOR CONSTRUCTION COMPANY, INC. SELECT ELECTRIC ORTIZ ENTERPRISES, INC. | I167: 5,6,7,8,11,12
A168: ACE SWEEPERS & WATER TRUCKS | B168: -4142 | C168: 149400 | D168: M | E168: 2 | F168: =FETCHCOMMENT(E168) -> 04-0P1204 04-1Q4604 | G168: 1 | H168: =FETCHCOMMENT(G168) -> O.C. JONES & SONS, INC. | I168: 4
A169: BAY TECH ENGINEERING, INC. | B169: -4142 | C169: 1607500 | D169: M | E169: 1 | F169: =FETCHCOMMENT(E169) -> 04-2Q5704 | G169: 1 | H169: =FETCHCOMMENT(G169) -> DISNEY CONSTRUCTION, INC. | I169: 4
A170: BRIDGE RUBBER BEARING | B170: -4142 | C170: 59896 | D170: M | E170: 4 | F170: =FETCHCOMMENT(E170) -> 01-0J6314 10-0G8304 01-0E11U4 03-3H6104 | G170: 3 | H170: =FETCHCOMMENT(G170) -> GRANTIE CONSTRUCTION COMPANY VIKING CONSTRUCTION COMPANY DESILVA GATES CONSTRUCTION LLC | I170: 1,3,10
A171: CALIFORNIA PROFESSIONAL | B171: -4142 | C171: 3626767 | D171: M | E171: 4 | F171: =FETCHCOMMENT(E171) -> 07-320804 07-321604 08-1J2604 06-1E2204 | G171: 4 | H171: =FETCHCOMMENT(G171) -> CALPROMAX ENGINEERING, INC. R.J. NOBLE COMPANY MARTIN MARIETTA SAN DIEGO AGGREGATES LLC DBA ATP GENERAL ENGINEERING CONTRACTORS CORAL CONSTRUCTION COMPANY | I171: 6,7,8
A172: GLOBAL ROAD SEALING INC | B172: -4142 | C172: 2823414 | D172: M | E172: 9 | F172: =FETCHCOMMENT(E172) -> 06-0X3304 07-322904 12-0N8904 07-338604 08-496124 07-349504 12-0S3104 01-0H1704 12-0R6804 | G172: 6 | H172: =FETCHCOMMENT(G172) -> SECURITY PAVING COMPANY C. A. RASMUSSEN, INC. ALFARO COMMUNICATIONS CONSTRUCTION, INC. AUTOBAHN CONSTRUCTION INC. GRANITE CONSTRUCTION COMPANY CHUMO CONSTRUCTION INC. | I172: 1,6,7,8,12
A173: GOLDEN STATE TRUCKING | B173: 43 | C173: 640770 | D173: M | E173: 1 | F173: =FETCHCOMMENT(E173) -> 04-1Q4604 | G173: 1 | H173: =FETCHCOMMENT(G173) -> O.C. JONES & SONS, INC. | I173: 4
A174: HUNSAKER & ASSOCIATES | B174: -4142 | C174: 115108 | D174: M | E174: 1 | F174: =FETCHCOMMENT(E174) -> 07-322904 | G174: 1 | H174: =FETCHCOMMENT(G174) -> C. A. RASMUSSEN, INC. | I174: 7
A175: JJ NGUYEN | B175: 33 | C175: 646424 | D175: M | E175: 3 | F175: =FETCHCOMMENT(E175) -> 04-4J5404 04-2Q7004 04-2Q7604 | G175: 2 | H175: =FETCHCOMMENT(G175) -> GHILOTTI BROS, INC. BAY CITIES PAVING & GRADING, INC. | I175: 4
A176: LMS TRANSPORT | B176: -4142 | C176: 2543228.51 | D176: M | E176: 3 | F176: =FETCHCOMMENT(E176) -> 06-0X3304 07-322904 11-430394 | G176: 3 | H176: =FETCHCOMMENT(G176) -> SECURITY PAVING COMPANY C. A. RASMUSSEN, INC. GRIFFITH COMPANY | I176: 6,7,11
A177: NITTA EROSION CONTROL | B177: -4142 | C177: 18072 | D177: F | E177: 3 | F177: =FETCHCOMMENT(E177) -> 02-4H0004 01-0H1504 03-2J9104 | G177: 3 | H177: =FETCHCOMMENT(G177) -> ROCKY MOUNTAIN CONSTRUCTION GRANITE CONSTRUCTION COMPANY Q & D CONSTRUCTION | I177: 1,2,3
A178: PSI CONSTRUCTION & ENGINEERING, INC. | B178: -4142 | C178: 808830 | D178: F | E178: 1 | F178: =FETCHCOMMENT(E178) -> 08-1J8604 | G178: 1 | H178: =FETCHCOMMENT(G178) -> PETERSON-CHASE GENERAL ENGINEERING CONSTRUCTION, INC. | I178: 8
A179: PRIME SUPPLY 1 | B179: -4142 | C179: 240286.66 | D179: F | E179: 6 | F179: =FETCHCOMMENT(E179) -> 08-1C5704 10-1H6504 03-1H9904 05-1H3104 07-347504 11-2T3434 | G179: 6 | H179: =FETCHCOMMENT(G179) -> SEMA CONSTRUCTION INC MARINA LANDSCAPE INC A. TEICHERT & SON INC DBA TEICHERT CONSTRUCTION GRANITE CONSTRUCTION COMPANY GRIFFITH COMPANY WALSH CONSTRUCTION COMPANY II, LLC | I179: 3,5,7,8,10,11
A180: SRK ENGINEERING, INC. | B180: -4142 | C180: 1902964 | D180: F | E180: 1 | F180: =FETCHCOMMENT(E180) -> 08-1G6704 | G180: 1 | H180: =FETCHCOMMENT(G180) -> ORTIZ ENTERPRISES, INC. | I180: 8
A181: TRI COUNTIES TRUCKING | B181: 43 | C181: 5485016 | D181: F | E181: 5 | F181: =FETCHCOMMENT(E181) -> 03-4H0704 03-1H9904 02-4H0004 03-3H6104 03-3H5604 | G181: 4 | H181: =FETCHCOMMENT(G181) -> DESILVA GATES CONSTRUCTION A. TEICHERT & SON INC DBA TEICHERT CONSTRUCTION ROCKY MOUNTAIN CONSTRUCTION ORTIZ ENTERPRISES, INC. | I181: 2,3
A182: TRAFFIC LOOPS CRACKFILLING | B182: -4142 | C182: 264700 | D182: F | E182: 1 | F182: =FETCHCOMMENT(E182) -> 11-430254 | G182: 1 | H182: =FETCHCOMMENT(G182) -> CSI/CJA A JOINT VENTURE | I182: 11
A183: TRINITY FENCE COMPANY | B183: -4142 | C183: 1269107 | D183: M | E183: 1 | F183: =FETCHCOMMENT(E183) -> 07-356604 | G183: 1 | H183: =FETCHCOMMENT(G183) -> MYERS & SONS CONSTRUCTION, LLC | I183: 7
A184: ZETH ENGINEERING AND CONSTRUCTION | B184: -4142 | C184: 1899700 | D184: M | E184: 1 | F184: =FETCHCOMMENT(E184) -> 08-1K4904 | G184: 1 | H184: =FETCHCOMMENT(G184) -> GRANITE CONSTRUCTION COMPANY | I184: 8
F185: =FETCHCOMMENT(E185) ->  | H185: =FETCHCOMMENT(G185) -> 
A187: Other | B187: Column1 | C187: Dollars | D187: M/F | E187: Contract | F187: Contract # | G187: Prime | H187: Prime Name | I187: Districts
A188: ALFARO COMMUNICATIONS CONSTRUCTION, INC. | B188: -4142 | C188: ='[1]Construction Worksheet'!AW10 -> 1350925.9 | D188: M | E188: 1 | F188: =FETCHCOMMENT(E188) -> 08-1J6804 | G188: 1 | H188: =FETCHCOMMENT(G188) -> ALFARO COMMUNICATIONS CONSTRUCTION INC | I188: 8
F189: =FETCHCOMMENT(E189) ->  | H189: =FETCHCOMMENT(G189) -> 
A191: Non Minority Women | B191: Column1 | C191: Dollars | D191: M/F | E191: Contract | F191: Contract # | G191: Prime | H191: Prime Name | I191: Districts
A192: ACTION SWEEPING SERVICES, INC. | B192: 43 | C192: 552720 | D192: F | E192: 4 | F192: =FETCHCOMMENT(E192) -> 03-1H6304 03-2J3204 04-1J9604 06-0W8204 | G192: 1 | H192: =FETCHCOMMENT(G192) -> O.C. JONES & SONS, INC. | I192: 3,4,6
A193: ALTA GROUP | B193: -4142 | C193: 1239249.89 | D193: F | E193: 4 | F193: =FETCHCOMMENT(E193) -> 01-0E11U4 10-1E3004 04-0Q6104 04-0Q4404 | G193: 3 | H193: =FETCHCOMMENT(G193) -> GRANITE CONSTRUCTION COMPANY BAY CITIES PAVING & GRADING, INC. HOSELEY CORPORATION | I193: 1,4,10
A194: AMERICAN PAVING SUPPLY | B194: 33 | C194: 4925535.77 | D194: F | E194: 3 | F194: =FETCHCOMMENT(E194) -> 11-430254 10-1E3004 07-356604 | G194: 3 | H194: =FETCHCOMMENT(G194) -> CSI/CJA A JOINT VENTURE BAY CITIES PAVING & GRADING, INC. MYERS & SONS CONSTRUCTION, LLC | I194: 7,10,11
A195: ANYTHING WORKS | B195: -4142 | C195: 109620 | D195: F | E195: 2 | F195: =FETCHCOMMENT(E195) -> 01-0H1504 01-0H1704 | G195: 1 | H195: =FETCHCOMMENT(G195) -> GRANITE CONSTRUCTION COMPANY | I195: 1
A196: AURORA INDUSTRIAL HYGIENE | B196: -4142 | C196: 5400 | D196: F | E196: 3 | F196: =FETCHCOMMENT(E196) -> 05-1H3104 06-0W9704 08-1K4904 | G196: 2 | H196: =FETCHCOMMENT(G196) -> GRANITE CONSTRUCTION COMPANY BORTOLUSSI & WATKIN | I196: 5,6,8
A197: AVILA TRAFFIC SAFETY | B197: 33 | C197: 463900 | D197: F | E197: 1 | F197: =FETCHCOMMENT(E197) -> 06-0U4304 | G197: 1 | H197: =FETCHCOMMENT(G197) -> GRIFFITH COMPANY | I197: 6
A198: BANCROFT CONSTRUCTION SERVICES | B198: 43 | C198: 622237 | D198: F | E198: 1 | F198: =FETCHCOMMENT(E198) -> 11-2T3434 | G198: 1 | H198: =FETCHCOMMENT(G198) -> WALSH CONSTRUCTION COMPANY II, LLC | I198: 11
A199: BOBS BACKHOE & TRUCKING | B199: 43 | C199: 213231 | D199: F | E199: 1 | F199: =FETCHCOMMENT(E199) -> 05-1H3104 | G199: 1 | H199: =FETCHCOMMENT(G199) -> GRANITE CONSTRUCTION COMPANY | I199: 5
A200: CAL SIGNAL CORP | B200: 33 | C200: 994034.89 | D200: F | E200: 4 | F200: =FETCHCOMMENT(E200) -> 02-3H6504 02-4H0204 02-4H0504 10-1E3004 | G200: 3 | H200: =FETCHCOMMENT(G200) -> J.F. SHEA CONSTRUCTION INC TULLIS INC BAY CITIES PAVING & GRADING, INC. | I200: 2,10
A201: CALIFORNIA CONSTRUCTION | B201: -4142 | C201: 179440 | D201: F | E201: 1 | F201: =FETCHCOMMENT(E201) -> 06-0X2604 | G201: 1 | H201: =FETCHCOMMENT(G201) -> A. TEICHERT & SON, INC. DBA TEICHERT CONSTRUCTION | I201: 6
A202: CAT TRACKING | B202: -4142 | C202: 352187.25 | D202: F | E202: 3 | F202: =FETCHCOMMENT(E202) -> 07-320804 06-1A4604 08-1E1404 | G202: 3 | H202: =FETCHCOMMENT(G202) -> CALPROMAX ENGINEERING, INC. CAL VALLEY CONSTRUCTION INC BEADOR CONSTRUCTION COMPANY, INC. | I202: 6,7,8
A203: CES | B203: -4142 | C203: 91647 | D203: F | E203: 1 | F203: =FETCHCOMMENT(E203) -> 12-0N8904 | G203: 1 | H203: =FETCHCOMMENT(G203) -> SECURITY PAVING COMPANY, INC. | I203: 12
A204: CHAVEZ GENERAL ENGINEERING | B204: -4142 | C204: 3798000 | D204: F | E204: 2 | F204: =FETCHCOMMENT(E204) -> 02-3H6804 02-4H0004 | G204: 2 | H204: =FETCHCOMMENT(G204) -> J.F. SHEA CONSTRUCTION ROCKY MOUNTAIN CONSTRUCTION | I204: 2
A205: CMC TRAFFIC CONTROL | B205: -4142 | C205: 1011920 | D205: F | E205: 7 | F205: =FETCHCOMMENT(E205) -> 04-2G7804 04-0Q6104 04-4K1404 03-3H5604 04-1Q4604 06-0X0604 08-1K4904 | G205: 7 | H205: =FETCHCOMMENT(G205) -> FBD VANGUARD CONSTRUCTION, INC. HOSELEY CORPORATION GRANITE ROCK COMPANY FLATIRON WEST INC. O.C. JONES & SONS, INC. A. TEICHERT & SON, INC. DBA TEICHERT CONSTRUCTION GRANITE CONSTRUCTION COMPANY | I205: 3,4,6,8
A206: COLUMBIA ELECTRIC, INC. | B206: -4142 | C206: 2905998 | D206: F | E206: 6 | F206: =FETCHCOMMENT(E206) -> 04-2G7804 04-0K7804 04-4J5404 04-1Q5814 04-0K1104 04-2Q7604 | G206: 3 | H206: =FETCHCOMMENT(G206) -> FBD VANGUARD CONSTRUCTION, INC. GHILOTTI BROS INC BAY CITIES PAVING & GRADING, INC. | I206: 4
A207: CONTERA CONSTRUCTION CORP. | B207: -4142 | C207: 1984590 | D207: F | E207: 1 | F207: =FETCHCOMMENT(E207) -> 08-1G6704 | G207: 1 | H207: =FETCHCOMMENT(G207) -> ORTIZ ENTERPRISES, INC. | I207: 8
A208: COOPER ENGINEERING | B208: 33 | C208: 1437986.24 | D208: F | E208: 3 | F208: =FETCHCOMMENT(E208) -> 11-430254 12-0R6804 12-0S3304 | G208: 2 | H208: =FETCHCOMMENT(G208) -> CSI/CJA A JOINT VENTURE CHUMO CONSTRUCTION INC. | I208: 11,12
A209: DEES BURKE ENGINEERING | B209: -4142 | C209: 11597301.92 | D209: F | E209: 17 | F209: =FETCHCOMMENT(E209) -> 01-0J6314 02-3H6804 10-0G8304 03-1H9904 11-430394 03-4H6004 04-0K7804 12-0S1504 04-4J5404 07-351304 03-3H6104 04-1J9604 06-0X3004 03-2J9104 07-356604 03-3H5604 06-0W8204 | G209: 13 | H209: =FETCHCOMMENT(G209) -> GRANTIE CONSTRUCTION COMPANY J.F. SHEA CONSTRUCTION COMPANY INC VIKING CONSTRUCTION COMPANY INC A. TEICHERT & SON INC DBA TEICHERT CONSTRUCTION GRIFFITH COMPANY DESILVA GATES CONSTRUCTION GHILOTTI BROS INC POWELL CONSTRUCTORS O.C. JONES AND SONS INC BAY CITIES PAVING & GRADING INC Q&D CONSTRUCTION LLC MYERS & SONS CONSTRUCTION, LLC FLATIRON WEST INC. | I209: 1,2,3,4,6,7,10,11,12
... 67 more rows
